[Event "*** Titled Tuesday Blitz"]
[Site "Chess.com"]
[Date "2018.01.02"]
[Round "3"]
[White "hermionegrangermagic"]
[Black "Maitreia"]
[Result "1/2-1/2"]
[WhiteElo "2419"]
[BlackElo "2559"]
[TimeControl "180+2"]
[EndTime "13:39:17 PST"]
[Termination "Game drawn by repetition"]

1. e4 {[%clk 0:03:00.9]} 1... c5 {[%clk 0:02:59.5]} 2. Nf3 {[%clk 0:02:35]} 2...
g6 {[%clk 0:02:58.9]} 3. d4 {[%clk 0:02:31.5]} 3... cxd4 {[%clk 0:03:00.8]} 4.
Nxd4 {[%clk 0:02:33.2]} 4... Nc6 {[%clk 0:02:59]} 5. c4 {[%clk 0:02:34]} 5...
Nf6 {[%clk 0:02:53.7]} 6. Nc3 {[%clk 0:02:33.7]} 6... Nxd4 {[%clk 0:02:54.3]} 7.
Qxd4 {[%clk 0:02:33.6]} 7... d6 {[%clk 0:02:55.3]} 8. Be2 {[%clk 0:02:34.2]}
8... Bg7 {[%clk 0:02:56]} 9. O-O {[%clk 0:02:33.2]} 9... O-O {[%clk 0:02:56.7]}
10. Qd1 {[%clk 0:02:32.3]} 10... Bd7 {[%clk 0:02:57.4]} 11. Be3 {[%clk
0:02:32.6]} 11... Bc6 {[%clk 0:02:58.4]} 12. Qc2 {[%clk 0:02:31.7]} 12... a5
{[%clk 0:02:59.1]} 13. b3 {[%clk 0:02:30.5]} 13... Nd7 {[%clk 0:02:55.5]} 14.
Rad1 {[%clk 0:02:30.5]} 14... Qc7 {[%clk 0:02:53.4]} 15. f4 {[%clk 0:02:29]}
15... b6 {[%clk 0:02:53.1]} 16. Bf3 {[%clk 0:02:30]} 16... Nc5 {[%clk
0:02:53.8]} 17. Nd5 {[%clk 0:02:24.9]} 17... Bxd5 {[%clk 0:02:54.2]} 18. cxd5
{[%clk 0:02:23.6]} 18... Rfc8 {[%clk 0:02:52.1]} 19. Qe2 {[%clk 0:02:20]} 19...
h5 {[%clk 0:02:11.7]} 20. g4 {[%clk 0:02:04.8]} 20... hxg4 {[%clk 0:02:11.8]}
21. Bg2 {[%clk 0:02:04.4]} 21... Qd7 {[%clk 0:02:03.8]} 22. f5 {[%clk 0:02:05]}
22... Bf6 {[%clk 0:01:53.4]} 23. Qxg4 {[%clk 0:02:04.8]} 23... Kg7 {[%clk
0:01:54.7]} 24. h4 {[%clk 0:01:38.5]} 24... Rh8 {[%clk 0:01:55.5]} 25. Bg5
{[%clk 0:01:39.3]} 25... Rh5 {[%clk 0:01:47.9]} 26. Bxf6+ {[%clk 0:01:38.2]}
26... exf6 {[%clk 0:01:49.8]} 27. Qf4 {[%clk 0:01:21.9]} 27... g5 {[%clk
0:01:39.9]} 28. hxg5 {[%clk 0:01:20.4]} 28... Rxg5 {[%clk 0:01:41.8]} 29. Rf3
{[%clk 0:01:18.7]} 29... Rh8 {[%clk 0:01:39.5]} 30. Rg3 {[%clk 0:01:18.6]} 30...
Qe7 {[%clk 0:01:40.8]} 31. Rf1 {[%clk 0:01:17.8]} 31... Rh5 {[%clk 0:01:38.3]}
32. a3 {[%clk 0:01:16.5]} 32... Rxg3 {[%clk 0:01:31.2]} 33. Qxg3+ {[%clk
0:01:15.8]} 33... Rg5 {[%clk 0:01:33.1]} 34. Qh4 {[%clk 0:01:16.6]} 34... Nxb3
{[%clk 0:01:25.9]} 35. Rf3 {[%clk 0:01:16.8]} 35... Nc5 {[%clk 0:00:59.2]} 36.
Rh3 {[%clk 0:01:14.7]} 36... Rxg2+ {[%clk 0:01:00.3]} 37. Kh1 {[%clk 0:01:06.5]}
37... Kf8 {[%clk 0:00:49.4]} 38. Kxg2 {[%clk 0:01:00.9]} 38... Qe5 {[%clk
0:00:46.4]} 39. Qg3 {[%clk 0:00:37.2]} 39... Qxe4+ {[%clk 0:00:45.9]} 40. Kh2
{[%clk 0:00:36.7]} 40... Qxd5 {[%clk 0:00:37.8]} 41. Rh8+ {[%clk 0:00:36.7]}
41... Ke7 {[%clk 0:00:38.8]} 42. Qg8 {[%clk 0:00:38.1]} 42... Qe5+ {[%clk
0:00:35.4]} 43. Kh1 {[%clk 0:00:37.2]} 43... Qe4+ {[%clk 0:00:35.7]} 44. Kh2
{[%clk 0:00:37.8]} 44... Qc2+ {[%clk 0:00:35.9]} 45. Kh1 {[%clk 0:00:38.6]}
45... Qd1+ {[%clk 0:00:35]} 46. Kh2 {[%clk 0:00:39.8]} 46... Qe2+ {[%clk
0:00:35.8]} 47. Kh1 {[%clk 0:00:41]} 47... Qf1+ {[%clk 0:00:35.7]} 48. Kh2
{[%clk 0:00:42.4]} 48... Qf2+ {[%clk 0:00:37.2]} 49. Kh1 {[%clk 0:00:43.3]}
49... Qf3+ {[%clk 0:00:35.8]} 50. Kh2 {[%clk 0:00:44.6]} 50... Qf4+ {[%clk
0:00:29]} 51. Kh1 {[%clk 0:00:45.3]} 51... Qe4+ {[%clk 0:00:25.4]} 52. Kh2
{[%clk 0:00:46.1]} 52... Qf4+ {[%clk 0:00:20.1]} 53. Kh1 {[%clk 0:00:47.4]}
53... Qf1+ {[%clk 0:00:17.8]} 54. Kh2 {[%clk 0:00:48.2]} 54... Qe2+ {[%clk
0:00:16.3]} 55. Kh1 {[%clk 0:00:49.4]} 55... Qd1+ {[%clk 0:00:17.1]} 56. Kh2
{[%clk 0:00:49.9]} 56... Qc2+ {[%clk 0:00:18.6]} 57. Kh1 {[%clk 0:00:50.7]}
57... Qb1+ {[%clk 0:00:18.2]} 58. Kh2 {[%clk 0:00:50.9]} 58... Qc2+ {[%clk
0:00:19.6]} 59. Kh1 {[%clk 0:00:51.3]} 59... Qe4+ {[%clk 0:00:20.2]} 60. Kh2
{[%clk 0:00:52.1]} 60... Qe5+ {[%clk 0:00:21]} 61. Kh1 {[%clk 0:00:52.8]} 61...
Qd5+ {[%clk 0:00:21.4]} 62. Kh2 {[%clk 0:00:53.9]} 62... Qd2+ {[%clk 0:00:22.2]}
63. Kh1 {[%clk 0:00:55.1]} 63... Qe1+ {[%clk 0:00:23.2]} 64. Kh2 {[%clk
0:00:56.3]} 64... Qf2+ {[%clk 0:00:24.3]} 65. Kh1 {[%clk 0:00:57.6]} 65... Qf1+
{[%clk 0:00:25.8]} 66. Kh2 {[%clk 0:00:59]} 66... Qf4+ {[%clk 0:00:27.1]} 67.
Kh1 {[%clk 0:01:00.2]} 67... Qe4+ {[%clk 0:00:27.4]} 68. Kh2 {[%clk 0:00:59.4]}
68... Qe2+ {[%clk 0:00:27.8]} 69. Kh1 {[%clk 0:01:00.4]} 69... Qe4+ {[%clk
0:00:27.5]} 1/2-1/2

[Event "*** Titled Tuesday Blitz"]
[Site "Chess.com"]
[Date "2018.01.02"]
[Round "3"]
[White "MITerryble"]
[Black "ftorodent"]
[Result "0-1"]
[WhiteElo "2652"]
[BlackElo "2499"]
[TimeControl "180+2"]
[EndTime "13:39:20 PST"]
[Termination "ftorodent won by resignation"]

1. d4 {[%clk 0:03:00.8]} 1... d5 {[%clk 0:03:00]} 2. Nf3 {[%clk 0:03:01.1]} 2...
Nf6 {[%clk 0:02:59.2]} 3. c4 {[%clk 0:03:02.1]} 3... e6 {[%clk 0:02:59.5]} 4. e3
{[%clk 0:03:02.7]} 4... Be7 {[%clk 0:02:59.8]} 5. Bd3 {[%clk 0:03:02.8]} 5...
O-O {[%clk 0:03:00.6]} 6. b3 {[%clk 0:03:02.5]} 6... b6 {[%clk 0:03:01]} 7. O-O
{[%clk 0:03:02.5]} 7... Bb7 {[%clk 0:03:02]} 8. Bb2 {[%clk 0:03:03.6]} 8... Nbd7
{[%clk 0:02:57.3]} 9. Nbd2 {[%clk 0:03:03.7]} 9... c5 {[%clk 0:02:54.9]} 10.
cxd5 {[%clk 0:03:01.1]} 10... Nxd5 {[%clk 0:02:49.4]} 11. Rc1 {[%clk 0:02:56.4]}
11... cxd4 {[%clk 0:02:48.9]} 12. Nxd4 {[%clk 0:02:50.7]} 12... Nc5 {[%clk
0:02:45.6]} 13. Bb1 {[%clk 0:02:51.2]} 13... Bf6 {[%clk 0:02:45.3]} 14. Nc4
{[%clk 0:02:46.8]} 14... Rc8 {[%clk 0:02:35.6]} 15. Qe2 {[%clk 0:02:37.8]} 15...
Ba6 {[%clk 0:02:10.3]} 16. Rfd1 {[%clk 0:02:29.5]} 16... Qe7 {[%clk 0:02:10.3]}
17. Qg4 {[%clk 0:01:54.8]} 17... g6 {[%clk 0:01:42]} 18. h3 {[%clk 0:01:55]}
18... Rfd8 {[%clk 0:01:40.1]} 19. Ba3 {[%clk 0:01:42.4]} 19... h5 {[%clk
0:01:31.7]} 20. Qf3 {[%clk 0:01:19.2]} 20... Bb7 {[%clk 0:01:32.3]} 21. Qe2
{[%clk 0:01:19.8]} 21... e5 {[%clk 0:01:22.6]} 22. Nb5 {[%clk 0:01:03.8]} 22...
Ba6 {[%clk 0:01:23.1]} 23. Nc3 {[%clk 0:00:42.1]} 23... Nxc3 {[%clk 0:01:17.9]}
24. Rxc3 {[%clk 0:00:43.5]} 24... e4 {[%clk 0:00:58.5]} 25. Rcc1 {[%clk
0:00:43.6]} 25... Qe6 {[%clk 0:00:54.6]} 26. Bxc5 {[%clk 0:00:32.5]} 26... Rxc5
{[%clk 0:00:53.6]} 27. Rxd8+ {[%clk 0:00:32.2]} 27... Bxd8 {[%clk 0:00:54.5]}
28. Qd1 {[%clk 0:00:32]} 28... Bc7 {[%clk 0:00:51.8]} 29. Nd2 {[%clk 0:00:27.3]}
29... Qd6 {[%clk 0:00:40]} 30. Nf1 {[%clk 0:00:28.2]} 30... Rxc1 {[%clk
0:00:27.7]} 31. Qxc1 {[%clk 0:00:28.8]} 31... Bxf1 {[%clk 0:00:23.4]} 32. Kxf1
{[%clk 0:00:29.3]} 32... Qh2 {[%clk 0:00:25]} 33. Qc2 {[%clk 0:00:24.5]} 33...
f5 {[%clk 0:00:16.5]} 34. Ke2 {[%clk 0:00:23.9]} 34... Be5 {[%clk 0:00:16.1]}
35. Qc8+ {[%clk 0:00:17.5]} 35... Kh7 {[%clk 0:00:16.7]} 36. Qe6 {[%clk
0:00:16.5]} 36... Bg7 {[%clk 0:00:17.1]} 37. g4 {[%clk 0:00:17.1]} 37... Qxh3
{[%clk 0:00:16.4]} 38. gxf5 {[%clk 0:00:16.9]} 38... Qf3+ {[%clk 0:00:17.4]} 39.
Kf1 {[%clk 0:00:14.7]} 39... gxf5 {[%clk 0:00:18.4]} 40. Bc2 {[%clk 0:00:14.6]}
40... h4 {[%clk 0:00:19.5]} 41. Qd7 {[%clk 0:00:04.6]} 41... h3 {[%clk 0:00:20]}
42. Bd1 {[%clk 0:00:05.7]} 42... Qg2+ {[%clk 0:00:19.6]} 43. Ke2 {[%clk
0:00:07]} 43... Qg6 {[%clk 0:00:13.2]} 44. Bc2 {[%clk 0:00:03.2]} 44... h2
{[%clk 0:00:12.8]} 45. Bxe4 {[%clk 0:00:04.2]} 45... fxe4 {[%clk 0:00:13.1]} 46.
Qh3+ {[%clk 0:00:06]} 46... Qh6 {[%clk 0:00:14.2]} 47. Qf5+ {[%clk 0:00:07.1]}
47... Kh8 {[%clk 0:00:15.2]} 48. Qc8+ {[%clk 0:00:06.1]} 48... Bf8 {[%clk
0:00:16.2]} 0-1

[Event "*** Titled Tuesday Blitz"]
[Site "Chess.com"]
[Date "2018.01.02"]
[Round "3"]
[White "theblitzchamp"]
[Black "kikydu96"]
[Result "0-1"]
[WhiteElo "2453"]
[BlackElo "2441"]
[TimeControl "180+2"]
[EndTime "13:39:28 PST"]
[Termination "kikydu96 won by checkmate"]

1. e4 {[%clk 0:03:00.5]} 1... e5 {[%clk 0:03:00]} 2. Nf3 {[%clk 0:03:01.2]} 2...
Nc6 {[%clk 0:03:01.1]} 3. d4 {[%clk 0:03:01.9]} 3... exd4 {[%clk 0:03:01.9]} 4.
Bc4 {[%clk 0:03:03.5]} 4... Nf6 {[%clk 0:03:02.9]} 5. O-O {[%clk 0:03:05.1]}
5... Nxe4 {[%clk 0:03:03.8]} 6. Nc3 {[%clk 0:03:06]} 6... Nxc3 {[%clk
0:02:54.5]} 7. bxc3 {[%clk 0:03:03.7]} 7... Be7 {[%clk 0:02:53.4]} 8. cxd4
{[%clk 0:03:04.4]} 8... d5 {[%clk 0:02:52.4]} 9. Bd3 {[%clk 0:03:02]} 9... O-O
{[%clk 0:02:53]} 10. h3 {[%clk 0:03:03.4]} 10... h6 {[%clk 0:02:50.5]} 11. c3
{[%clk 0:03:04.2]} 11... Be6 {[%clk 0:02:46.8]} 12. Bf4 {[%clk 0:03:04.7]} 12...
Qd7 {[%clk 0:02:45.2]} 13. Rb1 {[%clk 0:03:05.3]} 13... Rab8 {[%clk 0:02:44.9]}
14. Qd2 {[%clk 0:03:00.6]} 14... Bd6 {[%clk 0:02:31.7]} 15. Rfe1 {[%clk
0:02:13.1]} 15... Rfe8 {[%clk 0:02:26.8]} 16. Bxh6 {[%clk 0:02:01.1]} 16... gxh6
{[%clk 0:02:24.2]} 17. Qxh6 {[%clk 0:02:00.4]} 17... Bf5 {[%clk 0:02:20.1]} 18.
Qg5+ {[%clk 0:01:57]} 18... Bg6 {[%clk 0:02:20.3]} 19. Bxg6 {[%clk 0:01:57.8]}
19... fxg6 {[%clk 0:02:22]} 20. Qxg6+ {[%clk 0:01:59.2]} 20... Kh8 {[%clk
0:01:24]} 21. Ng5 {[%clk 0:01:41]} 21... Rxe1+ {[%clk 0:01:23.1]} 22. Rxe1
{[%clk 0:01:40.4]} 22... Qg7 {[%clk 0:01:25]} 23. Qh5+ {[%clk 0:01:26]} 23...
Kg8 {[%clk 0:01:24.7]} 24. Ne6 {[%clk 0:01:21.3]} 24... Qf6 {[%clk 0:01:17.5]}
25. Qxd5 {[%clk 0:01:11.1]} 25... Ne7 {[%clk 0:01:14.3]} 26. Qc4 {[%clk
0:01:08.4]} 26... Kh8 {[%clk 0:01:14.2]} 27. Re4 {[%clk 0:00:58.7]} 27... Rg8
{[%clk 0:01:11.3]} 28. Qe2 {[%clk 0:00:57.3]} 28... Qh6 {[%clk 0:01:01.6]} 29.
Qe3 {[%clk 0:00:19.8]} 29... Qxe3 {[%clk 0:00:48.3]} 30. Rxe3 {[%clk 0:00:20.8]}
30... Rg6 {[%clk 0:00:38]} 31. g3 {[%clk 0:00:21.2]} 31... Nd5 {[%clk
0:00:38.7]} 32. Re1 {[%clk 0:00:18.7]} 32... Nxc3 {[%clk 0:00:37.2]} 33. Kg2
{[%clk 0:00:20.2]} 33... Nxa2 {[%clk 0:00:36.6]} 34. h4 {[%clk 0:00:21.1]} 34...
a5 {[%clk 0:00:32.6]} 35. h5 {[%clk 0:00:22.5]} 35... Rf6 {[%clk 0:00:33.1]} 36.
f4 {[%clk 0:00:23.7]} 36... a4 {[%clk 0:00:30.2]} 37. Kf3 {[%clk 0:00:24.8]}
37... a3 {[%clk 0:00:29.5]} 38. g4 {[%clk 0:00:26]} 38... Nc3 {[%clk 0:00:30.5]}
39. g5 {[%clk 0:00:27.3]} 39... Rf5 {[%clk 0:00:31.3]} 40. Kg4 {[%clk
0:00:27.8]} 40... Ra5 {[%clk 0:00:21]} 41. g6 {[%clk 0:00:19]} 41... a2 {[%clk
0:00:21]} 42. Nd8 {[%clk 0:00:12.4]} 42... Nb1 {[%clk 0:00:04.7]} 43. Re8+
{[%clk 0:00:11.5]} 43... Kg7 {[%clk 0:00:05]} 44. Ne6+ {[%clk 0:00:10.2]} 44...
Kf6 {[%clk 0:00:05.3]} 45. Ng5 {[%clk 0:00:10.5]} 45... a1=Q {[%clk 0:00:04.7]}
46. Re6+ {[%clk 0:00:11.4]} 46... Kg7 {[%clk 0:00:05.7]} 47. Nf7 {[%clk
0:00:09.3]} 47... Qxd4 {[%clk 0:00:05.5]} 48. h6+ {[%clk 0:00:10.7]} 48... Kf8
{[%clk 0:00:06.7]} 49. Nxd6 {[%clk 0:00:11.6]} 49... cxd6 {[%clk 0:00:07.2]} 50.
g7+ {[%clk 0:00:13.1]} 50... Kf7 {[%clk 0:00:08.5]} 51. Rg6 {[%clk 0:00:12.6]}
51... Qg1+ {[%clk 0:00:08.5]} 52. Kf3 {[%clk 0:00:11.6]} 52... Qxg6 {[%clk
0:00:10.4]} 53. h7 {[%clk 0:00:12.7]} 53... Qxh7 {[%clk 0:00:10.6]} 54. f5
{[%clk 0:00:13.6]} 54... Qxf5+ {[%clk 0:00:11.3]} 55. Kg3 {[%clk 0:00:14.9]}
55... Ra3+ {[%clk 0:00:12.2]} 56. Kh4 {[%clk 0:00:16.8]} 56... Rh3# {[%clk
0:00:12.4]} 0-1

[Event "*** Titled Tuesday Blitz"]
[Site "Chess.com"]
[Date "2018.01.02"]
[Round "3"]
[White "Kaphrep"]
[Black "severomorskij"]
[Result "1-0"]
[WhiteElo "2657"]
[BlackElo "2652"]
[TimeControl "180+2"]
[EndTime "13:39:50 PST"]
[Termination "Kaphrep won by resignation"]

1. d4 {[%clk 0:03:01.9]} 1... Nf6 {[%clk 0:03:00.1]} 2. Nf3 {[%clk 0:03:02.5]}
2... e6 {[%clk 0:03:00.9]} 3. e3 {[%clk 0:03:02.4]} 3... c5 {[%clk 0:02:59]} 4.
Bd3 {[%clk 0:03:03.1]} 4... d5 {[%clk 0:02:59.4]} 5. O-O {[%clk 0:03:03.8]} 5...
Nc6 {[%clk 0:03:00]} 6. b3 {[%clk 0:03:04.7]} 6... cxd4 {[%clk 0:02:52.8]} 7.
exd4 {[%clk 0:03:04.8]} 7... Be7 {[%clk 0:02:49.1]} 8. Bb2 {[%clk 0:03:04.3]}
8... O-O {[%clk 0:02:50]} 9. Nbd2 {[%clk 0:03:05.3]} 9... Nb4 {[%clk 0:02:49.6]}
10. Be2 {[%clk 0:03:04.6]} 10... b6 {[%clk 0:02:50.6]} 11. a3 {[%clk 0:03:05.1]}
11... Nc6 {[%clk 0:02:51.6]} 12. Bd3 {[%clk 0:03:05.7]} 12... Bb7 {[%clk
0:02:52.6]} 13. Qe2 {[%clk 0:03:05.6]} 13... Re8 {[%clk 0:02:46.5]} 14. Rfe1
{[%clk 0:03:04.9]} 14... Bf8 {[%clk 0:02:47]} 15. Ne5 {[%clk 0:03:05]} 15... g6
{[%clk 0:02:46.7]} 16. Ndf3 {[%clk 0:03:05.4]} 16... Bg7 {[%clk 0:02:47.6]} 17.
h4 {[%clk 0:02:59]} 17... Nxe5 {[%clk 0:02:41.4]} 18. Nxe5 {[%clk 0:02:39.1]}
18... Rc8 {[%clk 0:02:33.2]} 19. Qf3 {[%clk 0:02:28.9]} 19... Qe7 {[%clk
0:02:13.4]} 20. a4 {[%clk 0:02:19.1]} 20... Ne4 {[%clk 0:02:10]} 21. a5 {[%clk
0:02:11.6]} 21... f6 {[%clk 0:01:46.7]} 22. Ng4 {[%clk 0:02:10.8]} 22... h5
{[%clk 0:01:26.6]} 23. Ne3 {[%clk 0:02:07.2]} 23... f5 {[%clk 0:01:05.5]} 24. g3
{[%clk 0:01:02.3]} 24... Qc7 {[%clk 0:00:58]} 25. axb6 {[%clk 0:00:51.7]} 25...
Qxb6 {[%clk 0:00:58.7]} 26. Ng2 {[%clk 0:00:42.2]} 26... Bxd4 {[%clk 0:00:52.4]}
27. Bxd4 {[%clk 0:00:43.4]} 27... Qxd4 {[%clk 0:00:53.4]} 28. Ra4 {[%clk
0:00:45]} 28... Qb6 {[%clk 0:00:41.5]} 29. Rea1 {[%clk 0:00:39]} 29... Ra8
{[%clk 0:00:26]} 30. Qe3 {[%clk 0:00:39.4]} 30... Qxe3 {[%clk 0:00:19.7]} 31.
Nxe3 {[%clk 0:00:41.3]} 31... a5 {[%clk 0:00:16.9]} 32. Rxa5 {[%clk 0:00:41.6]}
32... Rxa5 {[%clk 0:00:17.8]} 33. Rxa5 {[%clk 0:00:43.5]} 33... d4 {[%clk
0:00:17.2]} 34. Nc4 {[%clk 0:00:41.8]} 34... Bd5 {[%clk 0:00:18.1]} 35. Ne5
{[%clk 0:00:37.9]} 35... Ra8 {[%clk 0:00:10.7]} 36. Rxa8+ {[%clk 0:00:29.8]}
36... Bxa8 {[%clk 0:00:12.6]} 37. Nxg6 {[%clk 0:00:30.7]} 37... Nc5 {[%clk
0:00:12.8]} 38. b4 {[%clk 0:00:18.3]} 38... Nxd3 {[%clk 0:00:09.2]} 39. cxd3
{[%clk 0:00:20.2]} 39... Kg7 {[%clk 0:00:06.3]} 40. Nf4 {[%clk 0:00:21]} 40...
e5 {[%clk 0:00:07.3]} 41. Nxh5+ {[%clk 0:00:09.4]} 41... Kg6 {[%clk 0:00:08]}
42. g4 {[%clk 0:00:11.3]} 42... f4 {[%clk 0:00:04.8]} 43. Kh2 {[%clk 0:00:06.8]}
43... Bf3 {[%clk 0:00:04.4]} 44. Kh3 {[%clk 0:00:08.1]} 44... Be2 {[%clk
0:00:05.5]} 45. b5 {[%clk 0:00:08.2]} 45... Bf1+ {[%clk 0:00:06.5]} 46. Kh2
{[%clk 0:00:08.8]} 46... Bxd3 {[%clk 0:00:08.4]} 47. b6 {[%clk 0:00:10]} 47...
Be4 {[%clk 0:00:09.6]} 48. Kg1 {[%clk 0:00:09.2]} 48... d3 {[%clk 0:00:08.6]}
49. Kf1 {[%clk 0:00:10.4]} 49... Bf3 {[%clk 0:00:07.8]} 50. Ke1 {[%clk
0:00:11.5]} 50... Be4 {[%clk 0:00:04.8]} 51. Kd2 {[%clk 0:00:11.3]} 51... Kf7
{[%clk 0:00:03.9]} 52. g5 {[%clk 0:00:11.3]} 52... Kg6 {[%clk 0:00:04.5]} 53.
Nf6 {[%clk 0:00:12.3]} 53... Bb7 {[%clk 0:00:05.4]} 54. Nd7 {[%clk 0:00:13.2]}
54... Kf5 {[%clk 0:00:05.4]} 55. Nc5 {[%clk 0:00:14.3]} 55... Bc6 {[%clk
0:00:06.7]} 56. b7 {[%clk 0:00:13.3]} 56... Bxb7 {[%clk 0:00:07.8]} 57. Nxb7
{[%clk 0:00:15.2]} 57... e4 {[%clk 0:00:08.2]} 58. Nd6+ {[%clk 0:00:16.3]} 58...
Kg4 {[%clk 0:00:08.9]} 59. Nxe4 {[%clk 0:00:15.9]} 59... Kf3 {[%clk 0:00:09.6]}
60. g6 {[%clk 0:00:15.9]} 1-0

[Event "*** Titled Tuesday Blitz"]
[Site "Chess.com"]
[Date "2018.01.02"]
[Round "3"]
[White "ChristopherYoo"]
[Black "Pirlo1"]
[Result "1/2-1/2"]
[WhiteElo "2284"]
[BlackElo "2224"]
[TimeControl "180+2"]
[EndTime "13:40:00 PST"]
[Termination "Game drawn by repetition"]

1. e4 {[%clk 0:03:01.9]} 1... e5 {[%clk 0:02:59.3]} 2. Nf3 {[%clk 0:03:02]} 2...
Nf6 {[%clk 0:03:00]} 3. Nxe5 {[%clk 0:03:01.8]} 3... d6 {[%clk 0:03:00.3]} 4.
Nf3 {[%clk 0:03:02.6]} 4... Nxe4 {[%clk 0:03:01.5]} 5. Nc3 {[%clk 0:03:03.7]}
5... Nf6 {[%clk 0:03:02.5]} 6. d4 {[%clk 0:02:59.9]} 6... d5 {[%clk 0:03:03.8]}
7. Be2 {[%clk 0:02:49.1]} 7... Be7 {[%clk 0:03:01.8]} 8. O-O {[%clk 0:02:49.1]}
8... O-O {[%clk 0:03:03]} 9. Ne5 {[%clk 0:02:40.6]} 9... Nbd7 {[%clk 0:03:00.1]}
10. Bf4 {[%clk 0:02:31]} 10... Re8 {[%clk 0:02:59.2]} 11. Bf3 {[%clk 0:02:19.8]}
11... c6 {[%clk 0:02:59.8]} 12. Re1 {[%clk 0:02:17.4]} 12... Nf8 {[%clk
0:02:58.9]} 13. Qd2 {[%clk 0:02:14.3]} 13... Ng6 {[%clk 0:02:55.3]} 14. Bg3
{[%clk 0:02:14.2]} 14... Bb4 {[%clk 0:02:51.7]} 15. a3 {[%clk 0:02:13.8]} 15...
Ba5 {[%clk 0:02:51.9]} 16. b4 {[%clk 0:02:05.4]} 16... Bb6 {[%clk 0:02:51.6]}
17. Re2 {[%clk 0:01:43.6]} 17... Bf5 {[%clk 0:02:51.3]} 18. Rae1 {[%clk
0:01:40.2]} 18... Nxe5 {[%clk 0:02:23.8]} 19. Bxe5 {[%clk 0:01:19.7]} 19... Nd7
{[%clk 0:02:21.9]} 20. Bf4 {[%clk 0:01:02.7]} 20... Rxe2 {[%clk 0:02:20.5]} 21.
Rxe2 {[%clk 0:01:03.1]} 21... Qf6 {[%clk 0:02:15.1]} 22. Bxd5 {[%clk 0:00:29.3]}
22... Qxd4 {[%clk 0:01:47.6]} 23. Be4 {[%clk 0:00:24.9]} 23... Bxe4 {[%clk
0:01:37.1]} 24. Rxe4 {[%clk 0:00:21.7]} 24... Qxd2 {[%clk 0:01:14.3]} 25. Bxd2
{[%clk 0:00:23.6]} 25... Kf8 {[%clk 0:01:07.8]} 26. Bf4 {[%clk 0:00:19.2]} 26...
Rd8 {[%clk 0:00:58.8]} 27. Bd6+ {[%clk 0:00:19.1]} 27... Kg8 {[%clk 0:00:59.5]}
28. Re7 {[%clk 0:00:19.6]} 28... Nf6 {[%clk 0:00:58.8]} 29. Bc7 {[%clk
0:00:19.9]} 29... Rd2 {[%clk 0:00:46.8]} 30. Bxb6 {[%clk 0:00:19.4]} 30... axb6
{[%clk 0:00:46.4]} 31. h3 {[%clk 0:00:20.1]} 31... Rxc2 {[%clk 0:00:45.6]} 32.
Rxb7 {[%clk 0:00:20.4]} 32... h6 {[%clk 0:00:46.1]} 33. Na4 {[%clk 0:00:19.2]}
33... b5 {[%clk 0:00:46.1]} 34. Nc5 {[%clk 0:00:19.5]} 34... Ra2 {[%clk
0:00:32.7]} 35. Rc7 {[%clk 0:00:19.2]} 35... Rxa3 {[%clk 0:00:33.6]} 36. Rxc6
{[%clk 0:00:18.4]} 36... Ra1+ {[%clk 0:00:34.6]} 37. Kh2 {[%clk 0:00:18.7]}
37... Rb1 {[%clk 0:00:35.9]} 38. Na6 {[%clk 0:00:19.2]} 38... Ra1 {[%clk
0:00:18.1]} 39. Nc7 {[%clk 0:00:15.2]} 39... Rb1 {[%clk 0:00:17.9]} 40. Na6
{[%clk 0:00:13.5]} 40... Ra1 {[%clk 0:00:18.3]} 41. Nc7 {[%clk 0:00:13.8]} 41...
Rb1 {[%clk 0:00:18.6]} 42. Na6 {[%clk 0:00:13.9]} 42... Ra1 {[%clk 0:00:19.6]}
43. Nc7 {[%clk 0:00:14.7]} 43... Ra4 {[%clk 0:00:20.5]} 44. Nxb5 {[%clk
0:00:14.5]} 44... Rxb4 {[%clk 0:00:21.3]} 45. Nc3 {[%clk 0:00:16]} 45... Rb2
{[%clk 0:00:21.8]} 46. Kg3 {[%clk 0:00:16.2]} 46... Rc2 {[%clk 0:00:21.8]} 47.
Kf3 {[%clk 0:00:05.7]} 47... Kh7 {[%clk 0:00:21.7]} 48. Rc5 {[%clk 0:00:06.3]}
48... Nd7 {[%clk 0:00:20.8]} 49. Rc7 {[%clk 0:00:06.4]} 49... Ne5+ {[%clk
0:00:19.4]} 50. Kg3 {[%clk 0:00:07.2]} 50... Nd3 {[%clk 0:00:18.3]} 51. f3
{[%clk 0:00:04]} 51... Ne1 {[%clk 0:00:16.4]} 52. Re7 {[%clk 0:00:03.3]} 52...
Nxg2 {[%clk 0:00:15.1]} 53. Rxf7 {[%clk 0:00:03.2]} 53... Ne3 {[%clk 0:00:14.3]}
54. Ne4 {[%clk 0:00:04.1]} 54... Kg8 {[%clk 0:00:12.2]} 55. Rd7 {[%clk
0:00:04.8]} 55... g5 {[%clk 0:00:12.7]} 56. h4 {[%clk 0:00:04.6]} 56... Rg2+
{[%clk 0:00:11.3]} 57. Kh3 {[%clk 0:00:05.5]} 57... gxh4 {[%clk 0:00:10.4]} 58.
Nf6+ {[%clk 0:00:06.5]} 58... Kf8 {[%clk 0:00:10.9]} 59. Nh7+ {[%clk 0:00:07.7]}
59... Ke8 {[%clk 0:00:10.2]} 60. Nf6+ {[%clk 0:00:08.6]} 60... Kf8 {[%clk
0:00:11.3]} 61. Nh7+ {[%clk 0:00:09.7]} 61... Kg8 {[%clk 0:00:11.6]} 62. Nf6+
{[%clk 0:00:10.7]} 62... Kf8 {[%clk 0:00:12]} 63. Nh7+ {[%clk 0:00:11.3]}
1/2-1/2